[Event "Early-Titled-Tuesday-Blitz-August-29-2023"]
[Site "Chess.com"]
[Date "2023.08.29"]
[Round "4"]
[White "Bauman_Guy"]
[Black "Doomfist26"]
[Result "1/2-1/2"]
[WhiteElo "2802"]
[BlackElo "2568"]
[TimeControl "180+1"]
[EndTime "8:40:45 PDT"]
[Termination "Game drawn by repetition"]

1. e4 {[%clk 0:03:00.9]} 1... e6 {[%clk 0:02:58.1]} 2. d4 {[%clk 0:03:00.8]}
2... d5 {[%clk 0:02:58.8]} 3. Nc3 {[%clk 0:03:01.7]} 3... Nf6 {[%clk 0:02:59.1]}
4. Bg5 {[%clk 0:03:01.4]} 4... Be7 {[%clk 0:02:59.5]} 5. e5 {[%clk 0:03:01.5]}
5... Nfd7 {[%clk 0:03:00]} 6. Bxe7 {[%clk 0:03:01.6]} 6... Qxe7 {[%clk
0:03:00.7]} 7. f4 {[%clk 0:03:02.4]} 7... O-O {[%clk 0:02:56.7]} 8. Nf3 {[%clk
0:02:59.4]} 8... c5 {[%clk 0:02:57.3]} 9. Nb5 {[%clk 0:02:59.1]} 9... Nc6 {[%clk
0:02:56.9]} 10. Nd6 {[%clk 0:02:52.1]} 10... cxd4 {[%clk 0:02:50.6]} 11. Qd2
{[%clk 0:02:49.7]} 11... f6 {[%clk 0:02:45.8]} 12. O-O-O {[%clk 0:02:49.1]}
12... fxe5 {[%clk 0:02:44.9]} 13. fxe5 {[%clk 0:02:49.6]} 13... Ndxe5 {[%clk
0:02:44.2]} 14. Nxe5 {[%clk 0:02:27.9]} 14... Qxd6 {[%clk 0:02:23.7]} 15. Nf3
{[%clk 0:02:01.1]} 15... e5 {[%clk 0:02:21.1]} 16. Kb1 {[%clk 0:01:59]} 16...
Bf5 {[%clk 0:02:18.5]} 17. Nh4 {[%clk 0:01:56]} 17... Bg4 {[%clk 0:02:14.9]} 18.
Be2 {[%clk 0:01:48.8]} 18... Bxe2 {[%clk 0:01:52.9]} 19. Qxe2 {[%clk 0:01:49.7]}
19... e4 {[%clk 0:01:53.5]} 20. g4 {[%clk 0:01:49.5]} 20... Qe5 {[%clk
0:01:46.8]} 21. Nf5 {[%clk 0:01:47.7]} 21... g6 {[%clk 0:01:46.9]} 22. Ng3
{[%clk 0:01:41.8]} 22... Rac8 {[%clk 0:01:40.6]} 23. a3 {[%clk 0:01:40.5]} 23...
d3 {[%clk 0:01:34.6]} 24. cxd3 {[%clk 0:01:31.9]} 24... Nd4 {[%clk 0:01:34.8]}
25. Qe1 {[%clk 0:01:23.9]} 25... Rc2 {[%clk 0:01:25.7]} 26. Rf1 {[%clk
0:01:11.6]} 26... Rfc8 {[%clk 0:01:08]} 27. Qb4 {[%clk 0:00:45.4]} 27... e3
{[%clk 0:00:25]} 28. Rde1 {[%clk 0:00:28.8]} 28... Rxh2 {[%clk 0:00:09.8]} 29.
Qxb7 {[%clk 0:00:25.5]} 29... Rb8 {[%clk 0:00:09.3]} 30. Qf7+ {[%clk 0:00:16.2]}
30... Kh8 {[%clk 0:00:09.6]} 31. b4 {[%clk 0:00:16.7]} 31... Nf5 {[%clk
0:00:06.4]} 32. Ne2 {[%clk 0:00:11.1]} 32... Nd6 {[%clk 0:00:02.7]} 33. Qf6+
{[%clk 0:00:10.7]} 33... Qxf6 {[%clk 0:00:03]} 34. Rxf6 {[%clk 0:00:11.6]} 34...
Nb5 {[%clk 0:00:03.7]} 35. Rf3 {[%clk 0:00:07.3]} 35... Rxe2 {[%clk 0:00:03.3]}
36. Rxe2 {[%clk 0:00:08.2]} 36... Nc3+ {[%clk 0:00:04]} 37. Kb2 {[%clk
0:00:08.8]} 37... Nxe2 {[%clk 0:00:04.6]} 38. Rxe3 {[%clk 0:00:09.7]} 38... Nd4
{[%clk 0:00:05.2]} 39. Kc3 {[%clk 0:00:09.7]} 39... Nb5+ {[%clk 0:00:04.8]} 40.
Kb3 {[%clk 0:00:10.1]} 40... Rd8 {[%clk 0:00:05]} 41. a4 {[%clk 0:00:09.9]}
41... Nd4+ {[%clk 0:00:05.5]} 42. Kc3 {[%clk 0:00:09.8]} 42... Nc6 {[%clk
0:00:04.9]} 43. Re6 {[%clk 0:00:08.6]} 43... Rc8 {[%clk 0:00:03.9]} 44. Rd6
{[%clk 0:00:09]} 44... d4+ {[%clk 0:00:03.4]} 45. Kb3 {[%clk 0:00:08.6]} 45...
a6 {[%clk 0:00:02.5]} 46. b5 {[%clk 0:00:07.2]} 46... axb5 {[%clk 0:00:03.2]}
47. axb5 {[%clk 0:00:08.1]} 47... Ne5 {[%clk 0:00:03.9]} 48. Rxd4 {[%clk
0:00:07.6]} 48... Kg7 {[%clk 0:00:04.6]} 49. Kb4 {[%clk 0:00:07.2]} 49... Kf6
{[%clk 0:00:04.3]} 50. Ka5 {[%clk 0:00:06]} 50... h5 {[%clk 0:00:04.6]} 51. gxh5
{[%clk 0:00:06]} 51... gxh5 {[%clk 0:00:05.3]} 52. Rd6+ {[%clk 0:00:04.5]} 52...
Kg5 {[%clk 0:00:05.7]} 53. b6 {[%clk 0:00:04.8]} 53... h4 {[%clk 0:00:04.5]} 54.
b7 {[%clk 0:00:04.7]} 54... Rb8 {[%clk 0:00:04.6]} 55. Kb6 {[%clk 0:00:04.9]}
55... h3 {[%clk 0:00:05.3]} 56. Rd5 {[%clk 0:00:03.5]} 56... Kf4 {[%clk
0:00:03.7]} 57. Rd4+ {[%clk 0:00:02.7]} 57... Kg3 {[%clk 0:00:04]} 58. Ra4
{[%clk 0:00:02.2]} 58... h2 {[%clk 0:00:03.1]} 59. Ra1 {[%clk 0:00:03.1]} 59...
Nxd3 {[%clk 0:00:01.5]} 60. Kc7 {[%clk 0:00:04]} 60... Rxb7+ {[%clk 0:00:01.5]}
61. Kxb7 {[%clk 0:00:04.2]} 61... Nf2 {[%clk 0:00:02.1]} 62. Kc6 {[%clk
0:00:04.2]} 62... Kg2 {[%clk 0:00:02.7]} 63. Kd5 {[%clk 0:00:03.9]} 63... Nh3
{[%clk 0:00:03.3]} 64. Ra2+ {[%clk 0:00:03.4]} 64... Nf2 {[%clk 0:00:03.5]} 65.
Ra1 {[%clk 0:00:03.9]} 65... Nh3 {[%clk 0:00:03.8]} 66. Ra2+ {[%clk 0:00:04.2]}
66... Nf2 {[%clk 0:00:04.5]} 67. Ra1 {[%clk 0:00:04.5]} 1/2-1/2

[Event "Early-Titled-Tuesday-Blitz-August-29-2023"]
[Site "Chess.com"]
[Date "2023.08.29"]
[Round "4"]
[White "masterofpuppets2"]
[Black "leopato"]
[Result "1-0"]
[WhiteElo "2447"]
[BlackElo "2141"]
[TimeControl "180+1"]
[EndTime "8:40:45 PDT"]
[Termination "masterofpuppets2 won by resignation"]

1. d4 {[%clk 0:03:00.9]} 1... Nf6 {[%clk 0:02:34.7]} 2. c4 {[%clk 0:03:00.4]}
2... e6 {[%clk 0:02:30.4]} 3. Nf3 {[%clk 0:03:00.6]} 3... Bb4+ {[%clk
0:02:30.6]} 4. Bd2 {[%clk 0:03:00.6]} 4... Qe7 {[%clk 0:02:30.3]} 5. Nc3 {[%clk
0:03:01]} 5... O-O {[%clk 0:02:28.5]} 6. g3 {[%clk 0:03:00.1]} 6... d6 {[%clk
0:02:28]} 7. Bg2 {[%clk 0:02:59.9]} 7... e5 {[%clk 0:02:27.2]} 8. O-O {[%clk
0:02:53.4]} 8... Nc6 {[%clk 0:02:25.7]} 9. Nd5 {[%clk 0:02:33]} 9... Nxd5 {[%clk
0:02:23]} 10. cxd5 {[%clk 0:02:33.9]} 10... Bxd2 {[%clk 0:02:22.1]} 11. dxc6
{[%clk 0:02:31.7]} 11... Ba5 {[%clk 0:02:20.7]} 12. dxe5 {[%clk 0:02:21.6]}
12... dxe5 {[%clk 0:02:15.8]} 13. Qd5 {[%clk 0:02:21.3]} 13... Qb4 {[%clk
0:01:59.6]} 14. a3 {[%clk 0:02:07.5]} 14... Qb6 {[%clk 0:01:57.3]} 15. b4 {[%clk
0:02:04.2]} 15... bxc6 {[%clk 0:01:56.8]} 16. Qxe5 {[%clk 0:02:02.5]} 16... Bxb4
{[%clk 0:01:55.4]} 17. axb4 {[%clk 0:01:58.9]} 17... Qxb4 {[%clk 0:01:55.2]} 18.
Qxc7 {[%clk 0:01:58.9]} 18... Be6 {[%clk 0:01:52.2]} 19. Qxc6 {[%clk 0:01:45.1]}
19... a5 {[%clk 0:01:50.6]} 20. Rfb1 {[%clk 0:01:39.1]} 20... Qe7 {[%clk
0:01:46.5]} 21. Nd4 {[%clk 0:01:36.2]} 21... Rac8 {[%clk 0:01:41.9]} 22. Qa6
{[%clk 0:01:26.6]} 22... Bc4 {[%clk 0:01:39.9]} 23. Qxa5 {[%clk 0:01:26.4]}
23... Rfd8 {[%clk 0:01:34.2]} 24. e3 {[%clk 0:01:25.6]} 24... Bd3 {[%clk
0:01:27.1]} 25. Rb7 {[%clk 0:01:21.1]} 25... Qf6 {[%clk 0:01:19.4]} 26. Rb6
{[%clk 0:01:10.5]} 26... Rd6 {[%clk 0:00:54.6]} 27. Rxd6 {[%clk 0:00:55.7]}
27... Qxd6 {[%clk 0:00:55.5]} 28. Qd2 {[%clk 0:00:56.1]} 28... Bg6 {[%clk
0:00:46.6]} 29. Rc1 {[%clk 0:00:55.9]} 29... Rd8 {[%clk 0:00:45.4]} 30. Qc3
{[%clk 0:00:55.7]} 30... h5 {[%clk 0:00:43.5]} 31. h4 {[%clk 0:00:53.9]} 31...
Kh7 {[%clk 0:00:40.3]} 32. Qc7 {[%clk 0:00:53.3]} 32... Qf6 {[%clk 0:00:39.1]}
33. Qf4 {[%clk 0:00:52.7]} 33... Qb6 {[%clk 0:00:35.1]} 34. Kh2 {[%clk
0:00:47.3]} 34... Qb2 {[%clk 0:00:33]} 35. Re1 {[%clk 0:00:38.9]} 35... Qd2
{[%clk 0:00:31]} 36. Nf3 {[%clk 0:00:38.2]} 36... Qc3 {[%clk 0:00:24.6]} 37. Rf1
{[%clk 0:00:24.6]} 37... f6 {[%clk 0:00:23.9]} 38. Bh3 {[%clk 0:00:21.7]} 38...
Qd3 {[%clk 0:00:22.9]} 39. Re1 {[%clk 0:00:20.5]} 39... Kg8 {[%clk 0:00:20.6]}
40. Be6+ {[%clk 0:00:19.1]} 40... Kh8 {[%clk 0:00:20.6]} 41. Nd4 {[%clk
0:00:18.9]} 41... Qd2 {[%clk 0:00:18.8]} 42. Rf1 {[%clk 0:00:18.8]} 42... Bd3
{[%clk 0:00:17.7]} 43. Kg1 {[%clk 0:00:16.8]} 43... Bxf1 {[%clk 0:00:17]} 44.
Kxf1 {[%clk 0:00:17.7]} 44... Qd1+ {[%clk 0:00:16.9]} 45. Kg2 {[%clk 0:00:18.2]}
45... Qa4 {[%clk 0:00:15.5]} 46. Qf5 {[%clk 0:00:17.6]} 46... Qa8+ {[%clk
0:00:13.6]} 47. Kh2 {[%clk 0:00:17.6]} 47... g6 {[%clk 0:00:09.3]} 48. Qxf6+
{[%clk 0:00:16.9]} 48... Kh7 {[%clk 0:00:08.3]} 49. Qf7+ {[%clk 0:00:17.3]}
49... Kh6 {[%clk 0:00:08.1]} 50. Qf4+ {[%clk 0:00:16.6]} 50... Kg7 {[%clk
0:00:07.7]} 51. Qe5+ {[%clk 0:00:16.7]} 51... Kh6 {[%clk 0:00:07.4]} 52. Bh3
{[%clk 0:00:16.8]} 52... Rf8 {[%clk 0:00:05]} 53. Qg5+ {[%clk 0:00:16]} 53...
Kh7 {[%clk 0:00:04.9]} 54. Qe7+ {[%clk 0:00:16]} 54... Kh6 {[%clk 0:00:04.9]}
55. f3 {[%clk 0:00:12.8]} 55... Qa2+ {[%clk 0:00:04.6]} 56. Bg2 {[%clk
0:00:13.3]} 56... Rf5 {[%clk 0:00:01.6]} 57. Qg5+ {[%clk 0:00:14.1]} 57... Rxg5
{[%clk 0:00:01.5]} 58. hxg5+ {[%clk 0:00:15]} 58... Kxg5 {[%clk 0:00:02]} 59.
f4+ {[%clk 0:00:15.9]} 59... Kf6 {[%clk 0:00:02.5]} 60. e4 {[%clk 0:00:16.8]}
60... Kg7 {[%clk 0:00:03.3]} 61. e5 {[%clk 0:00:17.7]} 61... Qb2 {[%clk
0:00:04]} 62. Ne6+ {[%clk 0:00:17.5]} 62... Kf7 {[%clk 0:00:03.8]} 63. Ng5+
{[%clk 0:00:18.4]} 63... Kg8 {[%clk 0:00:04.1]} 64. e6 {[%clk 0:00:19.3]} 64...
Qd2 {[%clk 0:00:04.6]} 65. Kh3 {[%clk 0:00:20.2]} 65... Qd3 {[%clk 0:00:03.9]}
66. e7 {[%clk 0:00:20.4]} 66... Qf5+ {[%clk 0:00:04.1]} 67. Kh2 {[%clk 0:00:20]}
67... Qc8 {[%clk 0:00:05]} 68. Bd5+ {[%clk 0:00:19.4]} 68... Kg7 {[%clk
0:00:05.4]} 69. Ne6+ {[%clk 0:00:19]} 69... Kh6 {[%clk 0:00:05.6]} 70. Nc7
{[%clk 0:00:18.4]} 70... Qe8 {[%clk 0:00:06.5]} 71. Nxe8 {[%clk 0:00:18.4]} 1-0

[Event "Early-Titled-Tuesday-Blitz-August-29-2023"]
[Site "Chess.com"]
[Date "2023.08.29"]
[Round "4"]
[White "kirillshevchenko"]
[Black "baki83"]
[Result "0-1"]
[WhiteElo "2973"]
[BlackElo "2844"]
[TimeControl "180+1"]
[EndTime "8:40:56 PDT"]
[Termination "baki83 won on time"]

1. d4 {[%clk 0:02:50.6]} 1... d5 {[%clk 0:02:59.4]} 2. c4 {[%clk 0:02:50.7]}
2... c6 {[%clk 0:02:59.8]} 3. Nc3 {[%clk 0:02:48.3]} 3... Nf6 {[%clk 0:02:58.6]}
4. cxd5 {[%clk 0:02:48.5]} 4... cxd5 {[%clk 0:02:58.4]} 5. Bg5 {[%clk
0:02:49.3]} 5... Nc6 {[%clk 0:02:56.8]} 6. Bxf6 {[%clk 0:02:36.7]} 6... exf6
{[%clk 0:02:54.3]} 7. e3 {[%clk 0:02:30.1]} 7... Be6 {[%clk 0:02:48.4]} 8. Nge2
{[%clk 0:02:25]} 8... Bd6 {[%clk 0:02:46.4]} 9. g3 {[%clk 0:02:23.2]} 9... h5
{[%clk 0:02:46.4]} 10. Bg2 {[%clk 0:02:15.3]} 10... h4 {[%clk 0:02:38.9]} 11.
Qb3 {[%clk 0:02:13.3]} 11... Bb4 {[%clk 0:01:56.1]} 12. O-O {[%clk 0:02:07.9]}
12... hxg3 {[%clk 0:01:53.7]} 13. hxg3 {[%clk 0:02:08]} 13... Qd7 {[%clk
0:01:47.7]} 14. Nf4 {[%clk 0:02:08.4]} 14... Bxc3 {[%clk 0:01:44]} 15. bxc3
{[%clk 0:02:00.4]} 15... Rd8 {[%clk 0:01:36.6]} 16. Rab1 {[%clk 0:01:46.6]}
16... b6 {[%clk 0:01:34.6]} 17. Qb5 {[%clk 0:01:46.7]} 17... g5 {[%clk
0:01:17.1]} 18. Nxe6 {[%clk 0:01:42.3]} 18... fxe6 {[%clk 0:01:16.3]} 19. c4
{[%clk 0:01:41.7]} 19... Ne7 {[%clk 0:01:13.5]} 20. Qb3 {[%clk 0:01:32]} 20...
dxc4 {[%clk 0:01:00.6]} 21. Qxc4 {[%clk 0:01:31.4]} 21... Kf7 {[%clk 0:00:59.3]}
22. Rbc1 {[%clk 0:01:27]} 22... Rc8 {[%clk 0:00:59.3]} 23. Qd3 {[%clk
0:01:27.6]} 23... Kg7 {[%clk 0:00:51.5]} 24. Rcd1 {[%clk 0:01:09.8]} 24... Rc7
{[%clk 0:00:38.3]} 25. e4 {[%clk 0:01:07.5]} 25... Rhc8 {[%clk 0:00:37.4]} 26.
d5 {[%clk 0:00:56.6]} 26... Rc3 {[%clk 0:00:36.9]} 27. Qe2 {[%clk 0:00:50.5]}
27... e5 {[%clk 0:00:26]} 28. d6 {[%clk 0:00:49.1]} 28... Ng6 {[%clk 0:00:25.3]}
29. Bf3 {[%clk 0:00:44.1]} 29... Rc2 {[%clk 0:00:12.3]} 30. Rd2 {[%clk
0:00:42.6]} 30... Rxd2 {[%clk 0:00:12.1]} 31. Qxd2 {[%clk 0:00:43.5]} 31... Rd8
{[%clk 0:00:07]} 32. Rd1 {[%clk 0:00:43.6]} 32... Nh8 {[%clk 0:00:06.2]} 33. Qe2
{[%clk 0:00:40.1]} 33... Nf7 {[%clk 0:00:05.8]} 34. Bg4 {[%clk 0:00:40.8]} 34...
Qa4 {[%clk 0:00:04.6]} 35. d7 {[%clk 0:00:32.7]} 35... Nh6 {[%clk 0:00:04.9]}
36. Be6 {[%clk 0:00:29.7]} 36... Qc6 {[%clk 0:00:05]} 37. Bh3 {[%clk 0:00:20]}
37... a5 {[%clk 0:00:04.2]} 38. Rd5 {[%clk 0:00:14.6]} 38... a4 {[%clk
0:00:04.1]} 39. Qh5 {[%clk 0:00:15.2]} 39... Qc1+ {[%clk 0:00:02.9]} 40. Kg2
{[%clk 0:00:15.3]} 40... Qc6 {[%clk 0:00:03.5]} 41. Kh2 {[%clk 0:00:14.8]} 41...
Qc2 {[%clk 0:00:02.9]} 42. Kg1 {[%clk 0:00:13.4]} 42... Qxe4 {[%clk 0:00:02.7]}
43. Qe8 {[%clk 0:00:10.6]} 43... Qe1+ {[%clk 0:00:01.3]} 44. Kg2 {[%clk
0:00:09.3]} 44... Qe4+ {[%clk 0:00:01.8]} 45. Kh2 {[%clk 0:00:09.9]} 45... Rxe8
{[%clk 0:00:01.7]} 46. dxe8=Q {[%clk 0:00:10.2]} 46... Qxd5 {[%clk 0:00:02.3]}
47. Be6 {[%clk 0:00:10.3]} 47... Qd6 {[%clk 0:00:02.2]} 48. Bc4 {[%clk
0:00:04.4]} 48... a3 {[%clk 0:00:01.9]} 49. Bb3 {[%clk 0:00:04.5]} 49... Qf8
{[%clk 0:00:01.8]} 50. Qd7+ {[%clk 0:00:04.8]} 50... Kg6 {[%clk 0:00:01.6]} 51.
Bc2+ {[%clk 0:00:04.5]} 51... f5 {[%clk 0:00:02.1]} 52. Qd6+ {[%clk 0:00:04.3]}
52... Qf6 {[%clk 0:00:02]} 53. Qxa3 {[%clk 0:00:04.7]} 53... e4 {[%clk
0:00:02.3]} 54. Qa8 {[%clk 0:00:04.2]} 54... Ng4+ {[%clk 0:00:02.8]} 55. Kg2
{[%clk 0:00:03.8]} 55... Qf7 {[%clk 0:00:02.9]} 56. Qc6+ {[%clk 0:00:03.8]}
56... Nf6 {[%clk 0:00:02.5]} 57. Bb3 {[%clk 0:00:03.7]} 57... Qe7 {[%clk
0:00:02.6]} 58. Qc8 {[%clk 0:00:03.4]} 58... e3 {[%clk 0:00:02.6]} 59. fxe3
{[%clk 0:00:02.8]} 59... Qe4+ {[%clk 0:00:03]} 60. Kf1 {[%clk 0:00:01.9]} 60...
Qf3+ {[%clk 0:00:03.1]} 61. Ke1 {[%clk 0:00:02.6]} 61... Qxe3+ {[%clk
0:00:03.7]} 62. Kd1 {[%clk 0:00:03.4]} 62... Qd3+ {[%clk 0:00:04.1]} 63. Kc1
{[%clk 0:00:03.9]} 63... Qxg3 {[%clk 0:00:04.2]} 64. Bc2 {[%clk 0:00:03.4]}
64... Qf4+ {[%clk 0:00:04.3]} 65. Kb1 {[%clk 0:00:03.7]} 65... Qf1+ {[%clk
0:00:04.1]} 66. Kb2 {[%clk 0:00:03.9]} 66... Qb5+ {[%clk 0:00:04.5]} 67. Ka1
{[%clk 0:00:02.7]} 67... Qe5+ {[%clk 0:00:04.9]} 68. Kb1 {[%clk 0:00:01.9]}
68... b5 {[%clk 0:00:05.5]} 69. Qd8 {[%clk 0:00:01.6]} 69... g4 {[%clk
0:00:05.8]} 70. Qb6 {[%clk 0:00:01.7]} 70... g3 {[%clk 0:00:05.7]} 71. Qc6
{[%clk 0:00:01.5]} 71... Kg5 {[%clk 0:00:05.6]} 72. Qf3 {[%clk 0:00:01.8]} 72...
Qf4 {[%clk 0:00:05.9]} 73. Qg2 {[%clk 0:00:01.7]} 73... Qf2 {[%clk 0:00:06.1]}
74. Qh3 {[%clk 0:00:01.2]} 74... g2 {[%clk 0:00:06.1]} 75. Kb2 {[%clk
0:00:01.7]} 75... g1=Q {[%clk 0:00:06.5]} 76. Qh8 {[%clk 0:00:01.1]} 76... Qd4+
{[%clk 0:00:06.8]} 77. Kb3 {[%clk 0:00:01.8]} 77... Qc4+ {[%clk 0:00:07.3]} 0-1

[Event "Early-Titled-Tuesday-Blitz-August-29-2023"]
[Site "Chess.com"]
[Date "2023.08.29"]
[Round "4"]
[White "LangesNasenhaar"]
[Black "WildTricks"]
[Result "0-1"]
[WhiteElo "2465"]
[BlackElo "2652"]
[TimeControl "180+1"]
[EndTime "8:40:56 PDT"]
[Termination "WildTricks won on time"]

1. d4 {[%clk 0:03:00.9]} 1... Nf6 {[%clk 0:02:59.6]} 2. Nc3 {[%clk 0:03:01]}
2... e6 {[%clk 0:03:00.2]} 3. e4 {[%clk 0:03:00.1]} 3... d5 {[%clk 0:03:00.8]}
4. Qd3 {[%clk 0:02:58.5]} 4... dxe4 {[%clk 0:02:59.5]} 5. Nxe4 {[%clk
0:02:58.2]} 5... Nbd7 {[%clk 0:03:00.1]} 6. Nxf6+ {[%clk 0:02:56.2]} 6... Nxf6
{[%clk 0:02:59.9]} 7. Nf3 {[%clk 0:02:56.7]} 7... Bd6 {[%clk 0:02:54.6]} 8. g3
{[%clk 0:02:56.8]} 8... b6 {[%clk 0:02:46]} 9. Bg2 {[%clk 0:02:57.3]} 9... Bb7
{[%clk 0:02:46.3]} 10. O-O {[%clk 0:02:57.9]} 10... O-O {[%clk 0:02:45.3]} 11.
Rd1 {[%clk 0:02:55.9]} 11... c5 {[%clk 0:02:36.7]} 12. c3 {[%clk 0:02:46.1]}
12... Qc7 {[%clk 0:02:35.2]} 13. Bg5 {[%clk 0:02:40.4]} 13... Ne4 {[%clk
0:02:12.9]} 14. Be3 {[%clk 0:02:36.6]} 14... Rfd8 {[%clk 0:02:05.6]} 15. Qc2
{[%clk 0:02:29.9]} 15... Rac8 {[%clk 0:02:01.2]} 16. dxc5 {[%clk 0:02:25.3]}
16... Bxc5 {[%clk 0:02:00.1]} 17. Bxc5 {[%clk 0:02:20.1]} 17... Qxc5 {[%clk
0:01:49.7]} 18. Ng5 {[%clk 0:02:10.6]} 18... Qxg5 {[%clk 0:01:22.4]} 19. Bxe4
{[%clk 0:02:09.8]} 19... Bxe4 {[%clk 0:01:22.6]} 20. Qxe4 {[%clk 0:02:09.4]}
20... g6 {[%clk 0:01:19.7]} 21. h4 {[%clk 0:02:04.6]} 21... Qb5 {[%clk
0:01:15.8]} 22. Qc2 {[%clk 0:01:58.6]} 22... Qc4 {[%clk 0:01:09.1]} 23. Rd2
{[%clk 0:01:49]} 23... h5 {[%clk 0:01:01.3]} 24. a3 {[%clk 0:01:46.9]} 24...
Rxd2 {[%clk 0:00:51.6]} 25. Qxd2 {[%clk 0:01:47]} 25... Rc5 {[%clk 0:00:50.8]}
26. Rd1 {[%clk 0:01:40.4]} 26... Rd5 {[%clk 0:00:50]} 27. Qc2 {[%clk 0:01:40.7]}
27... Rxd1+ {[%clk 0:00:39]} 28. Qxd1 {[%clk 0:01:40.8]} 28... Kg7 {[%clk
0:00:39.3]} 29. Qd2 {[%clk 0:01:39.5]} 29... e5 {[%clk 0:00:38.5]} 30. Qe3
{[%clk 0:01:34.1]} 30... e4 {[%clk 0:00:36.5]} 31. f3 {[%clk 0:01:25.2]} 31...
exf3 {[%clk 0:00:31.6]} 32. Qxf3 {[%clk 0:01:25]} 32... Qb3 {[%clk 0:00:24.9]}
33. Qe2 {[%clk 0:01:21.1]} 33... Qd5 {[%clk 0:00:25]} 34. Kf2 {[%clk 0:01:12]}
34... Qf5+ {[%clk 0:00:24.1]} 35. Qf3 {[%clk 0:01:09.1]} 35... Qc2+ {[%clk
0:00:22.9]} 36. Qe2 {[%clk 0:01:09.2]} 36... Qf5+ {[%clk 0:00:22.8]} 37. Qf3
{[%clk 0:01:07.6]} 37... Qe6 {[%clk 0:00:18.2]} 38. Qd3 {[%clk 0:01:02.3]} 38...
Qe5 {[%clk 0:00:16.4]} 39. Kg2 {[%clk 0:00:53.5]} 39... b5 {[%clk 0:00:15.8]}
40. b3 {[%clk 0:00:46.8]} 40... a5 {[%clk 0:00:15]} 41. c4 {[%clk 0:00:46.6]}
41... bxc4 {[%clk 0:00:09.2]} 42. bxc4 {[%clk 0:00:40.5]} 42... a4 {[%clk
0:00:08.8]} 43. Kf3 {[%clk 0:00:37]} 43... Qf6+ {[%clk 0:00:07.1]} 44. Kg2
{[%clk 0:00:32.3]} 44... Qb2+ {[%clk 0:00:06.9]} 45. Kh3 {[%clk 0:00:23.1]}
45... Qb3 {[%clk 0:00:06.6]} 46. Qd4+ {[%clk 0:00:23]} 46... Kh7 {[%clk
0:00:05.3]} 47. Qf4 {[%clk 0:00:17.9]} 47... Kg8 {[%clk 0:00:04.8]} 48. c5
{[%clk 0:00:13.4]} 48... Qxa3 {[%clk 0:00:04]} 49. c6 {[%clk 0:00:13.9]} 49...
Qa1 {[%clk 0:00:02.1]} 50. Kg2 {[%clk 0:00:08.9]} 50... Qb2+ {[%clk 0:00:02.5]}
51. Qf2 {[%clk 0:00:07.9]} 51... Qc3 {[%clk 0:00:01.9]} 52. Qb6 {[%clk
0:00:05.5]} 52... Qc2+ {[%clk 0:00:01.9]} 53. Kf3 {[%clk 0:00:05.1]} 53... a3
{[%clk 0:00:02.8]} 54. c7 {[%clk 0:00:05.2]} 54... Qc3+ {[%clk 0:00:02.5]} 55.
Ke4 {[%clk 0:00:05.2]} 55... a2 {[%clk 0:00:03]} 56. Qb8+ {[%clk 0:00:04.9]}
56... Kg7 {[%clk 0:00:03.5]} 57. c8=Q {[%clk 0:00:05.3]} 57... Qxc8 {[%clk
0:00:03.9]} 58. Qxc8 {[%clk 0:00:05.9]} 58... a1=Q {[%clk 0:00:04.7]} 59. Qc4
{[%clk 0:00:05.1]} 59... Qf6 {[%clk 0:00:05.2]} 60. Qc5 {[%clk 0:00:04.6]} 60...
Qe6+ {[%clk 0:00:05]} 61. Kf3 {[%clk 0:00:04.6]} 61... Kf6 {[%clk 0:00:05.3]}
62. Kg2 {[%clk 0:00:03.4]} 62... Qf5 {[%clk 0:00:04.6]} 63. Qc6+ {[%clk
0:00:03.4]} 63... Kg7 {[%clk 0:00:05.3]} 64. Qc3+ {[%clk 0:00:03.6]} 64... Qf6
{[%clk 0:00:05.6]} 65. Qc4 {[%clk 0:00:04.3]} 65... Qe6 {[%clk 0:00:05.6]} 66.
Qd4+ {[%clk 0:00:04]} 66... Qf6 {[%clk 0:00:06.1]} 67. Qc4 {[%clk 0:00:04.3]}
67... Kh7 {[%clk 0:00:06.8]} 68. Qb3 {[%clk 0:00:04]} 68... Kg8 {[%clk
0:00:06.8]} 69. Qc4 {[%clk 0:00:04.2]} 69... Qe7 {[%clk 0:00:06]} 70. Qb3 {[%clk
0:00:04.1]} 70... Qe2+ {[%clk 0:00:05]} 71. Kh3 {[%clk 0:00:03.7]} 71... Qf2
{[%clk 0:00:04.4]} 72. Qd5 {[%clk 0:00:01.3]} 72... Qg1 {[%clk 0:00:04.3]} 0-1

[Event "Early-Titled-Tuesday-Blitz-August-29-2023"]
[Site "Chess.com"]
[Date "2023.08.29"]
[Round "5"]
[White "AleksandraMilovic"]
[Black "Mikedannnn"]
[Result "0-1"]
[WhiteElo "2097"]
[BlackElo "2580"]
[TimeControl "180+1"]
[EndTime "8:49:32 PDT"]
[Termination "Mikedannnn won by resignation"]

1. e4 {[%clk 0:02:50.6]} 1... c5 {[%clk 0:02:59.1]} 2. Nf3 {[%clk 0:02:50.1]}
2... e6 {[%clk 0:02:57.7]} 3. c4 {[%clk 0:02:49.7]} 3... b6 {[%clk 0:02:57]} 4.
Nc3 {[%clk 0:02:49.5]} 4... Bb7 {[%clk 0:02:57.6]} 5. d4 {[%clk 0:02:50.1]} 5...
cxd4 {[%clk 0:02:57]} 6. Nxd4 {[%clk 0:02:51]} 6... a6 {[%clk 0:02:57.1]} 7. Be2
{[%clk 0:02:50.1]} 7... Qc7 {[%clk 0:02:57.3]} 8. O-O {[%clk 0:02:49.2]} 8...
Nf6 {[%clk 0:02:55.7]} 9. f3 {[%clk 0:02:46.6]} 9... Bd6 {[%clk 0:02:52.1]} 10.
h3 {[%clk 0:02:19.3]} 10... Nh5 {[%clk 0:02:48.2]} 11. Be3 {[%clk 0:02:19.2]}
11... Bh2+ {[%clk 0:02:45.1]} 0-1

[Event "Early-Titled-Tuesday-Blitz-August-29-2023"]
[Site "Chess.com"]
[Date "2023.08.29"]
[Round "5"]
[White "chito89"]
[Black "Boundless_Strike"]
[Result "0-1"]
[WhiteElo "2827"]
[BlackElo "2538"]
[TimeControl "180+1"]
[EndTime "8:50:23 PDT"]
[Termination "Boundless_Strike won by resignation"]

1. d4 {[%clk 0:03:00]} 1... e5 {[%clk 0:02:57.2]} 2. c4 {[%clk 0:03:00.6]} 2...
d6 {[%clk 0:02:56.9]} 3. Nc3 {[%clk 0:02:58.4]} 3... Bg4 {[%clk 0:02:56.3]} 4.
dxe5 {[%clk 0:02:57.2]} 4... Nc6 {[%clk 0:02:56.2]} 5. exd6 {[%clk 0:02:53.8]}
5... Bxd6 {[%clk 0:02:56]} 6. Nf3 {[%clk 0:02:52.7]} 6... Qe7 {[%clk 0:02:55.5]}
7. Bg5 {[%clk 0:02:45.2]} 7... f6 {[%clk 0:02:49.7]} 8. Bh4 {[%clk 0:02:45.9]}
8... O-O-O {[%clk 0:02:48]} 9. Qc2 {[%clk 0:02:41.2]} 9... Nb4 {[%clk
0:01:43.5]} 10. Qb3 {[%clk 0:02:38.6]} 10... g5 {[%clk 0:01:35.2]} 11. Bg3
{[%clk 0:02:37.9]} 11... Bxg3 {[%clk 0:01:34.5]} 12. hxg3 {[%clk 0:02:38.4]}
12... Nd3+ {[%clk 0:01:34.7]} 0-1